Workbook

Sheet 1р.здания
N2: УТВЕРЖДАЮ:
N3: Глава Бобровского сельсовета
N4: Ванпилин С.Н.
E6: Реестр муниципального имущества на 01.01.2023г.
A8: 1 раздел реестра
A9: муниципального имущества муниципального образования Бобровский сельсовет
A10: согласно постановления администрации Бобровского сельсовета от 12 декабря 2013 г.№ 214
A11: " Об утверждении Порядка ведения реестра муниципального имущества муниципального образования Бобровский сельсовет"
A12: (недвижимое имущество, здания)
A14: № п/п | B14: Наименование | C14: Назначение | D14: Адрес местонахождения | E14: Год постройки | F14: Дата постановки на учет | G14: Материал стен | H14: Общая площадь, м2 | I14: Процент износа, % | J14: Балансовая стоимость, руб. | K14: Остаточная стоимость, руб. | L14: Площадь земельного участка | M14: Кадастровый номер земельного участка | N14: Состояние | O14: Правообладатель
A15: 1 | B15: 2 | C15: 3 | D15: 4 | E15: 5 | F15: 6 | G15: 7 | H15: 8 | I15: 9 | J15: 10 | K15: 11 | L15: 12 | M15: 13 | N15: 14 | O15: 15
A16: 1 | B16: Здание администрации | C16: Нежилое | D16: с.Бобровка ул.Ленина 41б | E16: 1990 | F16: 15.01.2014 | G16: кирпич | H16: 927.1 | I16: 63.99 | J16: 3,989,912.22 | K16: 1,342,154.50 | L16: 2135м.кв | M16: 22:33:050507:491 | N16: Действующ | O16: Администрация Бобровского сельсовета
A17: =A16+1 -> 2 | B17: Здание пос.Лесной | C17: Нежилое | D17: пос.Лесной ул.Лесная 13а | E17: 2009 | F17: 21.10.2014 | G17: кирпич | H17: 74.8 | I17: 100 | J17: 1,650,000.00 | K17: 0.00 | L17: 559м.кв | M17: 22:33:050202:172 | N17: Действующ | O17: Администрация Бобровского сельсовета
A18: =#REF!+1 -> 
I19: ИТОГО: | J19: =SUM(J16:J18) -> 5,639,912.22 | K19: =SUM(K16:K18) -> 1,342,154.50

Sheet 1р1прил.сооружения
A1: 1 раздел реестра
A2: муниципального имущества муниципального имущества Бобровский сельсовет
A3: (недвижимое имущество , сооружения)(приложение 1)
A5: № п/п | B5: Наименование | C5: Адрес местонахождения | D5: Год постройки | E5: Материал | F5: Дата постановки на учет | G5: Процент износа, % | H5: Балансовая стоимость, руб. | I5: Остаточная стоимость, руб. | J5: Площадь земельного участка | K5: Кадастровый номер земельного участка | L5: Состояние | M5: Правообладатель
A6: 1 | B6: 2 | C6: 3 | D6: 4 | E6: 5 | F6: 6 | G6: 7 | H6: 8 | I6: 9 | J6: 10 | K6: 11 | L6: 12 | M6: 13
A7: 1 | B7: Котел водогрейный | C7: с.Бобровка ул.Ленина 41б | D7: 2013-10-31 | E7: железо | F7: 2013-10-31 | G7: 100 | H7: 32,078.00 | I7: 0.00 | L7: действующий | M7: Администрация Бобровского сельсовета
A8: =A7+1 -> 2 | B8: Пушка тепловая | C8: с.Бобровка ул.Ленина 41б | D8: 2013-01-22 | E8: железо | F8: 2013-01-22 | G8: 100 | H8: 26,000.00 | I8: 0.00 | L8: действующий | M8: Администрация Бобровского сельсовета
A9: 3 | B9: Памятная доска | C9: с.Бобровка ул.Ленина 41б | D9: 09.07.2013 | E9: дерево. | F9: 2013-07-09 | G9: 100 | H9: 10,000.00 | I9: 0.00 | L9: действующий | M9: Администрация Бобровского сельсовета
A10: =A9+1 -> 4 | B10: Туалет одноочковый | C10: с.Бобровка территория кладбища | D10: 2016-04-18 | E10: дерево. | F10: 18.04.216 | G10: 100 | H10: 3,720.00 | I10: 0.00 | L10: действующий | M10: Администрация Бобровского сельсовета
A11: 5 | B11: Туалетдвухочковый | C11: с.Бобровка территория кладбища | D11: 2016-04-18 | E11: дерево. | F11: 2016-04-18 | G11: 100 | H11: 4,320.00 | I11: 0.00 | L11: действующий | M11: Администрация Бобровского сельсовета
A12: 6 | B12: Ограждение кладбища с.Сосновка | C12: с.Сосновка | D12: 2014-09-30 | E12: железо | F12: 2014-09-30 | G12: 13.33 | H12: 99,984.00 | I12: 0.00 | L12: действующий | M12: Администрация Бобровского сельсовета
A13: 7 | B13: Ворота на кладбище | C13: с.Бобровка территория кладбища | D13: 2016-04-30 | E13: железо | F13: 2016-04-30 | G13: 100 | H13: 29,800.00 | I13: 0.00 | L13: действующий | M13: Администрация Бобровского сельсовета
A14: 8 | B14: Мусорный контейнер | C14: с.Бобровка ул.Ленина 79 | D14: 2013-07-09 | E14: железо | F14: 2013-07-09 | G14: 100 | H14: 11,000.00 | I14: 0.00 | L14: действующий | M14: Администрация Бобровского сельсовета
A15: 9 | B15: Памятник воинам ВОВ | C15: с.Бобровка ул.Ленина 81 | D15: 2013-10-15 | E15: Бетон | F15: 2013-10-15 | L15: действующий | M15: Администрация Бобровского сельсовета
A16: 10 | B16: Остановка у здания администрации | C16: с.Бобровка ул.Ленина 41б | D16: 2013-10-15 | E16: железо | F16: 2013-10-15 | H16: 18,900.00 | I16: 0.00 | L16: действующий | M16: Администрация Бобровского сельсовета
G17: ИТОГО: | H17: =SUM(H7:H16) -> 235,802.00 | I17: =SUM(I7:I16) -> 0.00

Sheet 1р2прил.казна
A1: 1 раздел реестра
A2: муниципального имущества муниципального образования Бобровский сельсовет
A3: недвижимое имущество (казна) (приложение 2)
A5: № п/п | B5: Наименование | C5: Назначение | D5: Адрес местонахождения | E5: Год постройки | F5: Дата постановки на учет | G5: Материал стен | H5: Общая площадь, м2 | I5: Протяженность, м | J5: Процент износа, % | K5: Балансовая стоимость, руб. | L5: Остаточная стоимость, руб. | M5: Площадь земельного участка | N5: Кадастровый номер земельного участка | O5: Состояние | P5: Правообладатель
A6: 1 | B6: 2 | C6: 3 | D6: 4 | E6: 5 | F6: 6 | G6: 7 | H6: 8 | I6: 9 | J6: 10 | K6: 11 | L6: 12 | M6: 13 | N6: 14 | O6: 15 | P6: 16
A7: 1 | B7: Земельный участок под здание администрации | C7: Под административ. здание | D7: с.Бобровка ул.Ленина 41б | F7: 2014-05-13 | H7: 2135 | J7: - | K7: 405,351.10 | L7: =K7 -> 405,351.10 | M7: 2135 м.кв | N7: 22:33:050511:143 | O7: Действует | P7: Администрация Бобровского сельсовета
A8: =A7+1 -> 2 | B8: Земельный участок | C8: Под сквер | D8: с.Бобровка ул.Лесная 31 | F8: 2013-11-08 | H8: 13668 | K8: 6,287.28 | L8: =K8 -> 6,287.28 | M8: 13668 м.кв | N8: 22:33:050509:487 | O8: Действует | P8: Администрация Бобровского сельсовета
A9: =A8+1 -> 3 | B9: Земельный участок | C9: Под административ. здание | D9: п.Лесной ул.Лесная 13 | F9: 23,08.2013 | H9: 559 | K9: 133,612.18 | L9: 133,612.18 | M9: 559 м.кв | N9: 22:33:050202:50 | O9: Действует | P9: Администрация Бобровского сельсовета
A10: =A9+1 -> 4 | B10: Земельный участок | C10: для размещения памятника | D10: с.Бобровка ул.Ленина 81 | F10: 2013-11-08 | H10: 428 | K10: 196.88 | L10: 196.88 | M10: 428 м.кв | N10: 22:33:050512:365 | O10: Действует | P10: Администрация Бобровского сельсовета
A11: 5 | B11: Дорога | C11: общее пользование | D11: с.Бобровка | F11: 2012-12-27 | H11: 66220 | L11: 0.00 | M11: 66220м.кв | O11: Действует | P11: Администрация Бобровского сельсовета
A12: 6 | B12: Дорога | C12: общее пользование | D12: пос.Сосновка | F12: 2012-12-27 | H12: 4980 | L12: 0.00 | M12: 4980 м.кв | N12: --- | O12: Действует | P12: Администрация Бобровского сельсовета
A13: 7 | B13: Дорога | C13: общее пользование | D13: пос.Лесной | F13: 2012-12-27 | H13: 8800 | L13: 0.00 | M13: 8800м.в | N13: --- | O13: Действует | P13: Администрация Бобровского сельсовета
A14: 8 | B14: Земельный участок | C14: Отдых | D14: с.Бобровка ул.Гастелло 22 д | F14: 2016-03-23 | H14: 5592 | K14: 2,572.32 | L14: 2,572.32 | M14: 5592м.кв | N14: --- | O14: Действует | P14: Администрация Бобровского сельсовета
A15: 9 | B15: Земельный участок | C15: отдых | D15: с. Бобровка ул.Ленина 83 | F15: 2019-01-09 | H15: 9860 | K15: 4,612,015.00 | L15: 4,612,015.00 | M15: 9860 м. кв | N15: 22:33:050512:390 | O15: Действует | P15: Администрация Бобровского сельсовета
J16: ИТОГО: | K16: =K7+K8+K9+K10+K14+K15 -> 5,160,034.76 | L16: =L7+L8+L9+L10+L14+L15 -> 5,160,034.76

Sheet 2р.трансп.
A1: 2 раздел реестра
A2: муниципального имущества муниципального образования Бобровский сельсовет
A3: согласно постановления администрации Бобровского сельсовета от 12 декабря 2013 г.№ 214
A4: " Об утверждении Порядка ведения реестра муниципального имущества муниципального образования Бобровский сельсовет"
A5: (движимое имущество , транспорт)
A7: № п/п | B7: Наименование | C7: Характеристика | D7: Адрес местонахождения | E7: Год ввода в эксплуатацию | F7: Дата постановки на учет | G7: Процент износа, % | H7: Балансовая стоимость, руб. | I7: Остаточная стоимость, руб. | J7: Состояние | K7: Правообладатель
A8: 1 | B8: 2 | C8: 3 | D8: 4 | E8: 5 | F8: 6 | G8: 7 | H8: 8 | I8: 9 | J8: 10 | K8: 11
A9: 1 | B9: УАЗ 396254 | C9: специальный А/М | D9: с.Бобровка ул.Ленина 41б | E9: 2008 | F9: 2008 | G9: 83.87 | H9: 340,000.00 | I9: 0.00 | J9: действующий | K9: Администрация Бобровского сельсовета
A10: 2 | B10: ЗИЛ 131 АРС14 | C10: грузовой | D10: с.Бобровка ул.Ленина 41б | E10: 1986 | F10: 24.11.2011 | G10: 100 | H10: 760,199.04 | I10: 0.00 | J10: действующий | K10: Администрация Бобровского сельсовета
G11: ИТОГО: | H11: =SUM(H9:H10) -> 1,100,199.04 | I11: =SUM(I9:I10) -> 0.00

Sheet 2р.1прил.маш.и обор.
A1: 2 раздел реестра
A2: муниципального имущества муниципального образования Бобровский сельсовет
A3: (движимое, машины и оборудование) ( Приложение 1)
A5: № п/п | B5: Наименование | C5: Адрес местонахождения | D5: Год приобретения | E5: Дата постановки на учет | F5: Процент износа, % | G5: Балансовая стоимость, руб. | H5: Остаточная стоимость, руб. | I5: Состояние | J5: Правообладатель
A6: 1 | B6: 2 | C6: 3 | D6: 4 | E6: 5 | F6: 6 | G6: 7 | H6: 8 | I6: 9 | J6: 10
A7: 1 | B7: Пылесос с аква фильтром | C7: с.Бобровка ул.Ленина 79 | D7: 2012 | E7: 2012 | F7: 100 | G7: 13,000.00 | H7: 0.00 | I7: действующий | J7: Администрация Бобровского сельсовета
A8: =A7+1 -> 2 | B8: Раздатчик холодной и горячей воды ( кулер) | C8: с.Бобровка ул.Ленина 41б | D8: 2012 | E8: 2012 | F8: 100 | G8: 9,200.00 | H8: 0.00 | I8: действующий | J8: Администрация Бобровского сельсовета
A9: 3 | B9: Холодильник Саратов | C9: с.Бобровка ул.Ленина 41б | D9: 2008 | E9: 2008 | F9: 100 | G9: 10,198.00 | H9: 0.00 | I9: действующий | J9: Администрация Бобровского сельсовета
A10: 4 | B10: Дымосос Таира | C10: с.Бобровка ул.Ленина 41б | D10: 2008 | E10: 2008 | F10: 100 | G10: 41,217.00 | H10: 0.00 | I10: действующий | J10: Администрация Бобровского сельсовета
A11: 5 | B11: Холодильник Норд | C11: с.Бобровка ул.Ленина 41б | D11: 2014 | E11: 2014 | F11: 100 | G11: 9,100.00 | H11: 0.00 | I11: действующий | J11: Администрация Бобровского сельсовета
A12: 6 | B12: Телефон | C12: с.Бобровка ул.Ленина 41б | D12: 2014 | E12: 2014 | F12: 100 | G12: 360.00 | H12: 0.00 | I12: действующий | J12: Администрация Бобровского сельсовета
A13: 7 | B13: Телефон панасоник КХ-FT982RU | C13: с.Бобровка ул.Ленина 41б | D13: 2012 | E13: 2012 | F13: 100 | G13: 6,196.37 | H13: 0.00 | I13: действующий | J13: Администрация Бобровского сельсовета
A14: 8 | B14: Насосная станция | C14: с.Бобровка ул.Ленина 41б | D14: 2016 | E14: 2016 | F14: 100 | G14: 8,000.00 | H14: 0.00 | I14: действующий | J14: Администрация Бобровского сельсовета
A15: 9 | B15: Мегафон с сиреной | C15: с.Бобровка ул.Ленина 41б | D15: 2013 | E15: 2013 | F15: 100 | G15: 3,200.00 | H15: 0.00 | I15: действующий | J15: Администрация Бобровского сельсовета
A16: 10 | B16: Мегафон с сиреной | C16: с.Бобровка ул.Ленина 41б | D16: 2013 | E16: 2013 | F16: 100 | G16: 3,200.00 | H16: 0.00 | I16: действующий | J16: Администрация Бобровского сельсовета
A17: 11 | B17: телефакс ПАНАСОНИК | C17: с.Бобровка ул.Ленина 41б | D17: 2013 | E17: 2013 | F17: 100 | G17: 5,780.00 | H17: 0.00 | I17: действующий | J17: Администрация Бобровского сельсовета
A18: 12 | B18: Мотокоса FS 55 | C18: c.Бобровка ул.Ленина 41б | D18: 2016 | E18: 2016 | F18: 100 | G18: 15,139.00 | H18: 0.00 | I18: действующий | J18: Администрация Бобровского сельсовета
A19: 13 | B19: Модем коннект | C19: с.Бобровка ул.Ленина 41б | D19: 2014 | E19: 2014 | F19: 100 | G19: 850.00 | H19: 0.00 | I19: действующий | J19: Администрация Бобровского сельсовета
A20: 14 | B20: Калькулятор | C20: с.Бобровка ул.Ленина 41б | D20: 2014 | E20: 2014 | F20: 100 | G20: 430.00 | H20: 0.00 | I20: действующий | J20: Администрация Бобровского сельсовета
A21: =17:17 -> 11
F22: ИТОГО: | G22: =SUM(G7:G21) -> 125,870.37 | H22: =SUM(H7:H21) -> 0.00

Sheet 2р.2прил.мебель
A1: 2 раздел реестра
A2: муниципального имущества муниципального образования Бобровский сельсовет
A3: (движимое, мебель) (Приложение 2)
A5: № п/п | B5: Наименование | C5: Адрес местонахождения | D5: Год приобретения | E5: Дата постановки на учет | F5: Материал | G5: Процент износа, % | H5: Балансовая стоимость, руб. | I5: Остаточная стоимость, руб. | J5: Состояние | K5: Правообладатель
A6: 1 | B6: 2 | C6: 3 | D6: 4 | E6: 5 | F6: 6 | G6: 7 | H6: 8 | I6: 9 | J6: 10 | K6: 11
A7: 1 | B7: Кресло офисное ( кабинет главы ) | C7: с.Бобровка ул.Ленина 41б | D7: 2015 | E7: 2015 | F7: коже-заменитель | G7: 100 | H7: 9,500.00 | I7: 0.00 | J7: действующее | K7: Администрация Бобровского сельсовета
A8: =A7+1 -> 2 | B8: Стеллаж-архив ( приемная | C8: с.Бобровка ул.Ленина 41б | D8: 2012 | E8: 2012 | F8: железо | G8: 100 | H8: 15,950.00 | I8: 0.00 | J8: действующее | K8: Администрация Бобровского сельсовета
A9: 3 | B9: Набор мебели для регистрации | C9: с.Бобровка ул.Ленина 41б | D9: 2012 | E9: 2012 | F9: дерево | G9: 100 | H9: 12,000.00 | I9: 0.00 | J9: действующее | K9: Администрация Бобровского сельсовета
A10: 4 | B10: Стол компьютерный ( кабинет зама) | C10: с.Бобровка ул.Ленина 41б | D10: 2012 | E10: 2012 | F10: дерево | G10: 100 | H10: 3,851.00 | I10: 0.00 | J10: действующее | K10: Администрация Бобровского сельсовета
A11: 5 | B11: Комплект штор в торжественном зале | C11: с.Бобровка ул.Ленина 41б | D11: 2012 | E11: 2012 | F11: шелк | G11: 100 | H11: 11,509.00 | I11: 0.00 | J11: действующее | K11: Администрация Бобровского сельсовета
A12: 6 | B12: Стулья металлические | C12: с.Бобровка ул.Ленина 41б | D12: 2012 | E12: 2012 | F12: железо | G12: 100 | H12: 19,200.00 | I12: 0.00 | J12: действующее | K12: Администрация Бобровского сельсовета
A13: 7 | B13: Шкаф платяной ( глава) | C13: с.Бобровка ул.Ленина 41б | D13: 2013 | E13: 2013 | F13: дерево | G13: 100 | H13: 7,800.00 | I13: 0.00 | J13: действующее | K13: Администрация Бобровского сельсовета
A14: 8 | B14: Стремянка оцинкованная | C14: с.Бобровка ул.Ленина 41б | D14: 2013 | E14: 2013 | F14: железо | G14: 100 | H14: 1,083.00 | I14: 0.00 | J14: действующее | K14: Администрация Бобровского сельсовета
A15: 9 | B15: Набор столов письменных 2 шт.общий отдел ВУС | C15: с.Бобровка ул.Ленина 41б | D15: 2013 | E15: 2013 | F15: дерево | G15: 100 | H15: 11,480.00 | I15: 0.00 | J15: действующее | K15: Администрация Бобровского сельсовета
A16: 10 | B16: Шкаф двухстворчатый ( приемная) | C16: с.Бобровка ул.Ленина 41б | D16: 2013 | E16: 2013 | F16: дерево | G16: 100 | H16: 14,320.00 | I16: 0.00 | J16: действующее | K16: Администрация Бобровского сельсовета
A17: 11 | B17: Стол компьютерный ( кабинет бухгалтерии) | C17: с.Бобровка ул.Ленина 41б | D17: 2012 | E17: 2012 | F17: дерево | G17: 100 | H17: 4,640.00 | I17: 0.00 | J17: действующее | K17: Администрация Бобровского сельсовета
A18: 12 | B18: Стол тумба ( спец по имуществу) | C18: с.Бобровка ул.Ленина 41б | D18: 2012 | E18: 2012 | F18: железо | G18: 100 | H18: 7,480.00 | I18: 0.00 | J18: действующее | K18: Администрация Бобровского сельсовета
A19: 13 | B19: Набор мебели ( стол письменный ,шкаф для документов зам главы) | C19: с.Бобровка ул.Ленина 41б | D19: 2013 | E19: 2013 | F19: дерево | G19: 100 | H19: 11,480.00 | I19: 0.00 | J19: действующее | K19: Администрация Бобровского сельсовета
A20: 14 | B20: Набор мебели 2 шт бухгалтерияя | C20: с.Бобровка ул.Ленина 41б | D20: 2013 | E20: 2013 | F20: дерево | G20: 100 | H20: 14,280.00 | I20: 0.00 | J20: действующее | K20: Администрация Бобровского сельсовета
A21: 15 | B21: Стеллаж общий отдел | C21: с.Бобровка ул.Ленина 41б | D21: 2015 | E21: 2013 | F21: дерево | G21: 100 | H21: 27,360.00 | I21: 0.00 | J21: действующее | K21: Администрация Бобровского сельсовета
G22: ИТОГО: | H22: =SUM(H7:H21) -> 171,933.00 | I22: =SUM(I7:I16) -> 0.00

Sheet 2р3прил.оргтех.
A1: 2 раздел реестра
A2: муниципального имущества муниципального образования Бобровский сельсовет
A3: (движимое, оргтехника и музыкальная аппаратура) (приложение 3)
A5: № п/п | B5: Наименование | C5: Адрес местонахождения | D5: Год приобретения | E5: Дата постановки на учет | F5: Процент износа, % | G5: Балансовая стоимость, руб. | H5: Остаточная стоимость, руб. | I5: Состояние | J5: Правообладатель
A6: 1 | B6: 2 | C6: 3 | D6: 4 | E6: 5 | F6: 6 | G6: 7 | H6: 8 | I6: 9 | J6: 10
A7: 1 | B7: МФУ HP Lazer Pкщ М 125 глава | C7: с.Бобровка ул.Ленина 41б | D7: 2016 | E7: 2016 | F7: 100 | G7: 8,500.00 | H7: 0.00 | I7: действующий | J7: Администрация Бобровского сельсовета
A8: =A7+1 -> 2 | B8: МФУ HP Lazer Pкщ М 125зам главы | C8: с.Бобровка ул.Ленина 41б | D8: 2016 | E8: 2016 | F8: 100 | G8: 8,500.00 | H8: 0.00 | I8: действующий | J8: Администрация Бобровского сельсовета
A9: =A8+1 -> 3 | B9: Музыкальный центр LG | C9: c.Бобровка ул.Ленина 41б | D9: 2013 | E9: 2013 | F9: 100 | G9: 4,958.00 | H9: 0.00 | I9: действующий | J9: Администрация Бобровского сельсовета
A10: 4 | B10: Принтер CANON LAZER 3000 Зам главы | C10: с.Бобровка ул.Ленина 41б | D10: 2008 | E10: 2008 | F10: 100 | G10: 5,678.00 | H10: 0.00 | I10: действующий | J10: Администрация Бобровского сельсовета
A11: 5 | B11: Системный блок приемная | C11: с.Бобровка ул.Ленина 41б | D11: 2013 | E11: 2013 | F11: 100 | G11: 13,832.00 | H11: 0.00 | I11: действующий | J11: Администрация Бобровского сельсовета
A12: 6 | B12: Маршрутизатор TP-LINR TL-MR 3220 Бухгалтерия | C12: с.Бобровка ул.Ленина 41б | D12: 2010 | E12: 2010 | F12: 100 | G12: 950.00 | H12: 0.00 | I12: действующий | J12: Администрация Бобровского сельсовета
A13: 7 | B13: МФУ LAZERGET M1132 | C13: c.Бобровка ул.Ленина 41б | D13: 2010 | E13: 2010 | F13: 100 | G13: 6,100.00 | H13: 0.00 | I13: действующий | J13: Администрация Бобровского сельсовета
A14: 8 | B14: MФУ LAZERGET M1132 | C14: c.Бобровка ул.Ленина 41б | D14: 2010 | E14: 2010 | F14: 100 | G14: 6,100.00 | H14: 0.00 | I14: действующий | J14: Администрация Бобровского сельсовета
A15: 9 | B15: ПринтерLAZERJET PRO 1102 Бухгалтерия | C15: с.Бобровка ул.Ленина 41б | D15: 2010 | E15: 2010 | F15: 100 | G15: 3,850.00 | H15: 0.00 | I15: действующий | J15: Администрация Бобровского сельсовета
A16: 10 | B16: Принтер CANON LAZER SHOT LBP29000 общ.отд. | C16: с.Бобровка ул.Ленина 41б | D16: 2014 | E16: 2014 | F16: 100 | G16: 6,972.00 | H16: 0.00 | I16: действующий | J16: Администрация Бобровского сельсовета
A17: 11 | B17: Ноутбук DHS в сборе ( сумка мышь ноутбук) бухгалтерия. | C17: с.Бобровка ул.Ленина 41б | D17: 2013 | E17: 2013 | F17: 100 | G17: 19,390.00 | H17: 0.00 | I17: действующий | J17: Администрация Бобровского сельсовета
A18: 12 | B18: Ноутбук acer Extensa (Глава) | C18: с.Бобровка ул.Ленина 41б | D18: 2015 | E18: 2015 | F18: 100 | G18: 25,000.00 | H18: 0.00 | I18: действующий | J18: Администрация Бобровского сельсовета
A19: 13 | B19: Коммутатор | C19: с.Бобровка ул.Ленина 41б | D19: 2010 | E19: 2010 | F19: 100 | G19: 1,390.00 | H19: 0.00 | I19: действующий | J19: Администрация Бобровского сельсовета
A20: 14 | B20: Компьютер в сборе ( системный блок,монитор) ВУС | C20: с.Бобровка ул.Ленина 41б | D20: 2010 | E20: 2010 | F20: 100 | G20: 16,278.00 | H20: 0.00 | I20: действующий | J20: Администрация Бобровского сельсовета
A21: 15 | B21: Калькулятор (бухгалтерия) | C21: с.Бобровка ул.Ленина 41б | D21: 2010 | E21: 2010 | F21: 100 | G21: 950.00 | H21: 0.00 | I21: действующий | J21: Администрация Бобровского сельсовета
A22: 16 | B22: Музыкальная аккустическая система ( торжественный зал) | C22: с.Бобровка ул.Ленина 41б | D22: 2010 | E22: 2010 | F22: 100 | G22: 5,000.00 | H22: 0.00 | I22: действующий | J22: Администрация Бобровского сельсовета
A23: 17 | B23: Системный блок ( зам главы) | C23: с.Бобровка ул.Ленина 41б | D23: 2010 | E23: 2010 | F23: 100 | G23: 10,147.02 | H23: 0.00 | I23: действующий | J23: Администрация Бобровского сельсовета
A24: 18 | B24: Системный блок ( общий отдел спец.по имущ.) | C24: с.Бобровка ул.Ленина 41б | D24: 2010 | E24: 2010 | F24: 100 | G24: 10,710.00 | H24: 0.00 | I24: действующий | J24: Администрация Бобровского сельсовета
A25: 19 | B25: Системный блок (бухгалтерия) | C25: с.Бобровка ул.Ленина 41б | D25: 2010 | E25: 2010 | F25: 100 | G25: 24,523.00 | H25: 0.00 | I25: действующий | J25: Администрация Бобровского сельсовета
A26: 20 | B26: Компьютер в сборе ( системный блок,монитор,клавиатура , мышь блок питания) Бухгалтерия | C26: с.Бобровка ул.Ленина 41б | D26: 2008 | E26: 2008 | F26: 100 | G26: 18,546.00 | H26: 0.00 | I26: действующий | J26: Администрация Бобровского сельсовета
A27: 21 | B27: Компьтер в сборе ( Монитор LG ; системный блок АМD,принтерLazerget ; мышь проводная , клавиатура, блок бесперебойного питания Ippon) ВУС | C27: с.Бобровка ул.Ленина 41б | D27: 2006 | E27: 2006 | F27: 100 | G27: 33,967.00 | H27: 0.00 | I27: действующий | J27: Администрация Бобровского сельсовета
A28: 22 | B28: Компьютер в сборе Бухгалтерия( монитор Samsund; системный блок DHS; принтер Lazerget1102; мышь проводная Gazet; клавиатура ; блок бесперебойного питания Ippon) | C28: с.Бобровка ул.Ленина 41б | D28: 2008 | E28: 2008 | F28: 100 | G28: 30,550.24 | H28: 0.00 | I28: действующий | J28: Администрация Бобровского сельсовета
A29: 23 | B29: Монитор в сборе Общий отдел спец по имуществу | C29: с.Бобровка ул.Ленина 41б | D29: 2010 | E29: 2010 | F29: 100 | G29: 8,355.00 | H29: 0.00 | I29: действующий | J29: Администрация Бобровского сельсовета
A30: 24 | B30: МФУ лазерный SAMSUNG 4220 Бухгалтерия | C30: с.Бобровка ул.Ленина 41б | D30: 2005 | E30: 2005 | F30: 100 | G30: 7,201.00 | H30: 0.00 | I30: действующий | J30: Администрация Бобровского сельсовета
A31: 25 | B31: Копировальный аппарат CANON 3228 ( Обший отдел сп.по имуществу) | C31: с.Бобровка ул.Ленина 41б | D31: 2010 | E31: 2010 | F31: 100 | G31: 11,597.10 | H31: 0.00 | I31: действующий | J31: Администрация Бобровского сельсовета
A32: 26 | B32: Комплект видеокамера TFWC20H70 и видео регистратор JVR 9008 | C32: c.Бобровка ул.Ленина 41б | D32: 2016 | E32: 2016 | F32: 100 | G32: 15,000.00 | H32: 0.00 | I32: действующий | J32: Администрация Бобровского сельсовета
A33: 27 | B33: Блок питания БП IPPON Pomerpro 600 | C33: c.Бобровка ул.Ленина 41б | D33: 2015 | E33: 2015 | F33: 100 | G33: 4,480.00 | H33: 0.00 | I33: действующий | J33: Администрация Бобровского сельсовета
A34: =A33+1 -> 28 | B34: Блок питания БП IPPON Pomerpro 600 | C34: с.Бобровка ул.Ленина 41б | D34: 2015 | E34: 2015 | F34: 100 | G34: 4,480.00 | H34: 0.00 | I34: действующий | J34: Администрация Бобровского сельсовета
A35: 29 | B35: Блок питания БП IPPON Pomerpro 600 | C35: с.Бобровка ул.Ленина 41б | D35: 2015 | E35: 2015 | F35: 100 | G35: 4,480.00 | H35: 0.00 | I35: действующий | J35: Администрация Бобровского сельсовета
A36: 30 | B36: Блок питания БП IPPON Pomerpro 600 | C36: с.Бобровка ул.Ленина 41б | D36: 2015 | E36: 2015 | F36: 100 | G36: 4,480.00 | H36: 0.00 | I36: действующий | J36: Администрация Бобровского сельсовета
A37: 31 | B37: Фотоаппарат SAMSUNG | C37: c.Бобровка ул.Ленина 41б | D37: 2013 | E37: 2013 | F37: 100 | G37: 4,898.00 | H37: 0.00 | I37: действующий | J37: Администрация Бобровского сельсовета
F38: ИТОГО: | G38: =SUM(G7:G37) -> 326,862.36 | H38: =SUM(H7:H37) -> 0.00

Sheet 2р.4прил.иное движ. (2)
A1: 2 раздел реестра
A2: муниципального имущества муниципального образования Бобровский сельсовет
A3: (движимое, иное движимое имущество) Приложение 4)
A5: № п/п | B5: Наименование | C5: Адрес местонахождения | D5: Год приобретения | E5: Дата постановки на учет | F5: Процент износа, % | G5: Балансовая стоимость, руб. | H5: Остаточная стоимость, руб. | I5: Состояние | J5: Правообладатель
A6: 1 | B6: 2 | C6: 3 | D6: 4 | E6: 5 | F6: 6 | G6: 7 | H6: 8 | I6: 9 | J6: 10
A7: 1 | B7: Административный сборник (специалист по имуществу) | C7: с.Бобровка ул.Ленина 41б | D7: 2013 | E7: 2013 | F7: 100 | G7: 61.75 | H7: 0.00 | I7: действующий | J7: Администрация Бобровского сельсовета
A8: 2 | B8: Комментарий к КОАП (специалист по имуществу) | C8: с.Бобровка ул.Ленина 41б | D8: 2010 | E8: 2010 | F8: 100 | G8: 422.75 | H8: 0.00 | I8: действующий | J8: Администрация Бобровского сельсовета
A9: 3 | B9: Знак дорожный | C9: с.Бобровка ул.Ленина 41б | D9: 205 | E9: 2016 | F9: 100 | G9: 16,800.00 | H9: 0.00 | I9: действующий | J9: Администрация Бобровского сельсовета
F10: ИТОГО: | G10: =SUM(G7:G9) -> 17,284.50 | H10: =SUM(H7:H8) -> 0.00

Sheet 2р.5прил.ДК.оргтехн.
A1: 2 раздел реестра
A2: муниципального имущества муниципального образования Бобровский сельсовет
A3: Дом культуры (движимое, оргтехника и музыкальная аппаратура) (Приложение 5 )
A5: № п/п | B5: Наименование | C5: Адрес местонахождения | D5: Год приобретения | E5: Дата постановки на учет | F5: Процент износа, % | G5: Балансовая стоимость, руб. | H5: Остаточная стоимость, руб. | I5: Состояние | J5: Правообладатель
A6: 1 | B6: 2 | C6: 3 | D6: 4 | E6: 5 | F6: 6 | G6: 7 | H6: 8 | I6: 9 | J6: 10
A7: 1 | B7: Музыкальный центр MUSTERU | C7: с.Бобровка ул.Ленина 79 | D7: 2010 | E7: 2010 | F7: 100 | G7: 3,500.00 | H7: 0.00 | I7: действующее | J7: Администрация Бобровского сельсовета
A8: =A7+1 -> 2 | B8: Комплект аккустических систем | C8: с.Бобровка ул.Ленина 79 | D8: 2008 | E8: 2008 | F8: 100 | G8: 3,957.00 | H8: 0.00 | I8: действующее | J8: Администрация Бобровского сельсовета
A9: 3 | B9: Усилитель CROWN | C9: с.Бобровка ул.Ленина 79 | D9: 2010 | E9: 2010 | F9: 100 | G9: 10,881.00 | H9: 0.00 | I9: действующее | J9: Администрация Бобровского сельсовета
A10: 4 | B10: Проигрыватель SAMSUNG DBD K320 | C10: с.Бобровка ул.Ленина 79 | D10: 2008 | E10: 2008 | F10: 100 | G10: 4,405.00 | H10: 0.00 | I10: действующее | J10: Администрация Бобровского сельсовета
A11: 5 | B11: Комплект звуковой аппаратуры | C11: с.Бобровка ул.Ленина 79 | D11: 2003 | E11: 2003 | F11: 100 | G11: 19,931.52 | H11: 0.00 | I11: действующее | J11: Администрация Бобровского сельсовета
A12: 6 | B12: Стерео - мини центр FILLIPS | C12: с.Бобровка ул.Ленина 79 | D12: 2005 | E12: 2005 | F12: 100 | G12: 4,928.00 | H12: 0.00 | I12: действующее | J12: Администрация Бобровского сельсовета
A13: 7 | B13: Радиосистема вокал ( микрофон) | C13: с.Бобровка ул.Ленина 79 | D13: 2008 | E13: 2008 | F13: 100 | G13: 4,700.00 | H13: 0.00 | I13: действующее | J13: Администрация Бобровского сельсовета
A14: 8 | B14: Световой прибор ( светомузыка ) | C14: с.Бобровка ул.Ленина 79 | D14: 2012 | E14: 2012 | F14: 100 | G14: 3,962.00 | H14: 0.00 | I14: действующее | J14: Администрация Бобровского сельсовета
A15: 9 | B15: 12 канальный микшер | C15: с.Бобровка ул.Ленина 79 | D15: 2008 | E15: 2008 | F15: 100 | G15: 8,590.00 | H15: 0.00 | I15: действующее | J15: Администрация Бобровского сельсовета
A16: 10 | B16: Микрофон проводной ( караоке) | C16: с.Бобровка ул.Ленина 79 | D16: 2011 | E16: 2011 | F16: 100 | G16: 3,100.00 | H16: 0.00 | I16: действующее | J16: Администрация Бобровского сельсовета
A17: 11 | B17: Активная аккустическая мультимеийная система VR HT9D 903V | C17: с.Бобровка ул.Ленина 79 | D17: 2013 | E17: 2013 | F17: 100 | G17: 11,600.00 | H17: 0.00 | I17: действующее | J17: Администрация Бобровского сельсовета
A18: 12 | B18: Аккустическая мультимедийная система VR HT 904 V | C18: с.Бобровка ул.Ленина 79 | D18: 2013 | E18: 2013 | F18: 100 | G18: 5,300.00 | H18: 0.00 | I18: действующее | J18: Администрация Бобровского сельсовета
A19: 13 | B19: Вокальная радиосистема | C19: с.Бобровка ул.Ленина 79 | D19: 2015 | E19: 2015 | F19: 100 | G19: 13,900.00 | H19: 0.00 | I19: действующее | J19: Администрация Бобровского сельсовета
A20: 14 | B20: Принтер SNARP AR 163 (A3) | C20: с.Бобровка ул.Ленина 79 | D20: 2013 | E20: 2013 | F20: 100 | G20: 10,000.00 | H20: 0.00 | I20: действующее | J20: Администрация Бобровского сельсовета
A21: 15 | B21: Моноблок | C21: с.Бобровка ул.Ленина 79 | D21: 2012 | E21: 2012 | F21: 100 | G21: 22,500.00 | H21: 0.00 | I21: действующее | J21: Администрация Бобровского сельсовета
A22: 16 | B22: Моноблок | C22: с.Бобровка ул.Ленина 79 | D22: 2012 | E22: 2012 | F22: 100 | G22: 23,250.00 | H22: 0.00 | I22: действующее | J22: Администрация Бобровского сельсовета
A23: 17 | B23: Пульт Benringer UB1204 FXPRO | C23: с.Бобровка ул.Ленина 79 | D23: 2015 | E23: 2015 | F23: 100 | G23: 10,000.00 | H23: 0.00 | I23: действующее | J23: Администрация Бобровского сельсовета
A24: 18
A25: 19
A26: 20
A27: 21
A28: 22
A29: 23
F30: ИТОГО: | G30: =SUM(G7:G29) -> 164,504.52 | H30: =SUM(H7:H29) -> 0.00

Sheet 2р.6прил.ДК.спорт.инвент.
A1: 2 раздел реестра
A2: муниципального имущества муниципального образования Бобровский сельсовет
A3: Дом культуры (движимое, спортивный инвентарь) ( приложение 6)
A5: № п/п | B5: Наименование | C5: Адрес местонахождения | D5: Год приобретения | E5: Дата постановки на учет | F5: Процент износа, % | G5: Балансовая стоимость, руб. | H5: Остаточная стоимость, руб. | I5: Состояние | J5: Правообладатель
A6: 1 | B6: 2 | C6: 3 | D6: 4 | E6: 5 | F6: 6 | G6: 7 | H6: 8 | I6: 9 | J6: 10
A7: 1 | B7: Скамья трансформер | C7: с.Бобровка ул.Ленина 79 | D7: 2014 | E7: 2014 | F7: 100 | G7: 4,800.00 | H7: 0.00 | I7: действующее | J7: Администрация Бобровского сельсовета
A8: =A7+1 -> 2 | B8: Стол 600*1000 | C8: с.Бобровка ул.Ленина 79 | D8: 2014 | E8: 2014 | F8: 100 | G8: 3,500.00 | H8: 0.00 | I8: действующее | J8: Администрация Бобровского сельсовета
A9: 3 | B9: Скамья терго | C9: с.Бобровка ул.Ленина 79 | D9: 2014 | E9: 2014 | F9: 100 | G9: 5,450.00 | H9: 0.00 | I9: действующее | J9: Администрация Бобровского сельсовета
A10: 4 | B10: Бильярд | C10: с.Бобровка ул.Ленина 79 | D10: 2014 | E10: 2014 | F10: 100 | G10: 13,916.00 | H10: 0.00 | I10: действующее | J10: Администрация Бобровского сельсовета
A11: 5 | B11: Беговая дорожка | C11: с.Бобровка ул.Ленина 79 | D11: 2014 | E11: 2014 | F11: 100 | G11: 50,000.00 | H11: 0.00 | I11: действующее | J11: Администрация Бобровского сельсовета
A12: 6 | B12: Хореографический станок | C12: с.Бобровка ул.Ленина 79 | D12: 2010 | E12: 2010 | F12: 100 | G12: 5,018.00 | H12: 0.00 | I12: действующее | J12: Администрация Бобровского сельсовета
A13: 7
A14: 8
A15: 9
A16: 10
A17: 11
A18: 12
A19: 13
A20: 14
A21: 15
A22: 16
A23: 17
F24: ИТОГО: | G24: =SUM(G7:G23) -> 82,684.00 | H24: =SUM(H7:H23) -> 0.00

Sheet 2р.7прил.дк.иное движимое. (2)
A1: 2 раздел реестра
A2: муниципального имущества муниципального образования Бобровский сельсовет
A3: Дом культуры (движимое, иное движимое имущество) ( приложение 7)
A5: № п/п | B5: Наименование | C5: Адрес местонахождения | D5: Год приобретения | E5: Дата постановки на учет | F5: Процент износа, % | G5: Балансовая стоимость, руб. | H5: Остаточная стоимость, руб. | I5: Состояние | J5: Правообладатель
A6: 1 | B6: 2 | C6: 3 | D6: 4 | E6: 5 | F6: 6 | G6: 7 | H6: 8 | I6: 9 | J6: 10
A7: 1 | B7: Костюм хоровой 14 штук | C7: с.Бобровка ул.Ленина 79 | D7: 2010 | E7: 2010 | F7: 100 | G7: 134,400.00 | H7: 0.00 | I7: действующий | J7: администрация Бобровского сельсовета
A8: =A7+1 -> 2 | B8: Библиотечный фонд | C8: c.Бобровка ул.Ленина 79 | D8: 2000 | E8: 2000 | F8: 100 | G8: 1,887.89 | H8: 0.00 | I8: действующий | J8: администрация Бобровского сельсовета
A9: 3 | B9: Методическая литература | C9: с.Бобровка ул.Ленина 79 | D9: 2008 | E9: 2008 | F9: 100 | G9: 284.25 | H9: 0.00 | I9: действующий | J9: администрация Бобровского сельсовета
A10: 4 | B10: Занавес сцены | C10: с.Бобровка ул.Ленина 79 | D10: 2008 | E10: 2008 | F10: 100 | G10: 23,803.00 | H10: 0.00 | I10: действующий | J10: администрация Бобровского сельсовета
A11: 5 | B11: Стол компьютерный 2 шт. | C11: с.Бобровка ул.Ленина 79 | D11: 2008 | E11: 2008 | F11: 100 | G11: 6,600.00 | H11: 0.00 | I11: действующий | J11: администрация Бобровского сельсовета
A12: 6 | B12: Ель искусственная | C12: с.Бобровка ул.Ленина 79 | D12: 2010 | E12: 2010 | F12: 100 | G12: 4,000.00 | H12: 0.00 | I12: действующий | J12: администрация Бобровского сельсовета
A13: 7 | B13: Ковер | C13: с.Бобровка ул.Ленина 79 | D13: 2010 | E13: 2010 | F13: 100 | G13: 3,740.00 | H13: 0.00 | I13: действующий | J13: администрация Бобровского сельсовета
A14: 8 | B14: Ростовая кукла | C14: с.Бобровка ул.Ленина 79 | D14: 2010 | E14: 2010 | F14: 100 | G14: 17,000.00 | H14: 0.00 | I14: действующий | J14: администрация Бобровского сельсовета
A15: 9
F16: ИТОГО: | G16: =SUM(G7:G15) -> 191,715.14 | H16: =SUM(H7:H15) -> 0.00

Sheet Лист1
